Workbook

Sheet Расчет суммы (корректировка РМ) (hidden)
B2: =#REF! -> 
A4: Общая сумма кредита утвержденная РМ (ИТОГО) | C4: 0 | H4: Тип | I4: Название СК | J4: коэф. | K4: Знач
A5: Новая сумма клиенту | C5: =IFERROR(MROUND(C4/K5,100),"") ->  | G5: Cтраховка | H5: =#REF! ->  | I5: =#REF! ->  | J5: =#REF! ->  | K5: =(J5/1)+1 -> 
A6: Новая сумма страховой организации | C6: =IFERROR((C4)-(C5),"") -> 
A7: Сумма, которую необходимо внести клиенту в кассу магазина. | C7: =#REF!-'Расчет суммы (корректировка РМ)'!C5 -> 
A8: Новые параметры кредитования
A10: Процентная ставка по договору | C10: =IF(C6="","",#REF!) -> 
A11: Cрок кредита (мес.) | C11: =IF(C6="","",#REF!) -> 
A12: Ежемесячный платеж по кредиту (BYR) | C12: =IFERROR(CEILING(C4*(C10/12)/(1-POWER(1+C10/12,-C11)),1000),"") -> 
A13: Абонентская плата за использование пакета услуг (BYR) | C13: =IF(C6="","",#REF!) -> 
A15: ИТОГО Сумма ежемесячного платежа | C15: =IF(C6="","",(SUM(C12:C13))) -> 

Sheet Обучающий материал (hidden)
A2: I | B2: Расчет доступной суммы кредита для кредитного продукта
B4: Расчет доступной суммы кредита осуществляется с обязательным заполнением следующих полей:
B6: 1 | C6: Выбор программы кредитования
B7: 2 | C7: Запрашиваемый срок кредита (По умолчанию рассчитывается исходя из срока 60 мес.)
C8: При желании клиента оформить кредит на иной срок - запрашиваемый срок кредита необходимо изменить .
B9: 3 | C9: Подтвержденный доход
B10: 4 | C10: Выплаты по кредитам
B11: 5 | C11: Иные платежа кроме коммунальных
B12: 6 | C12: Количество членов семьи
B13: После заполнения вышеуказанных полей вы сможете увидеть максимально доступную сумму кредита,
B14: без дополнительной проверки путем ввода максимальной суммы кредита в поле "Запрашиваемая сумма кредита".
A33: II | B33: Работа с вкладкой калькулятора «Расчет суммы (корректировка РМ)»
B34: Для корректного пересчета суммы кредита с/без страховки , сниженной при рассмотрении риск-менеджером, необходимо:
B36: 1.На вкладке «Калькулятор» обязательно заполняем следующие поля:
B37: 1.1. Программа кредитования
B38: 1.2. Указать сумму товара по Счет-Фактуре
B39: 1.3. Указать сумму первоночального взноса | E39: (если имеется)
B40: 1.4. Указать срок
B41: *информация в полях должна четко соответствовать первоначально введенным параметрам по заявке до рассмотрения риск-менеджером.
B55: 2. Переходим на вкладку «Расчет суммы (корректировки РМ)
B56: 2.1. В поле "Общая сумма кредита утвержденная РМ (ИТОГО) вводим утвержденную сумму риск-менеджером.
B82: 3.В поле "Общая сумма кредита утвержденная (РМ)" - необходимо внести сумму которую утвердил РМ.
B107: 4. Получаете обновленную информацию:
B108: - Новая сумма клиенту
B109: - Новая сумма страховой организации
B110: - Сумма, которую необходимо внести клиенту в кассу магазина.

Sheet Новый график 2 ставки+отсрочка
A1: Предварительный график платежей по кредиту | I1: Даты
A2: Дата договора | D2: 2022-11-25 | I2: Дата выдачи кредита/сегодня | N2: =D2 -> 2022-11-25 | O2: =DATE(YEAR(Дата_выдачи_кредита),MONTH(Дата_выдачи_кредита),DAY(N4)) -> 2022-11-25
A3: ППС Начало/конец | D3: =SUM(D13:D132)*360/SUM(W13:W132) -> 0.1681709755 | E3: =SUM(D13:D132)*360/SUM(X13:X132) -> 0.1728544403 | I3: Дата начала действаия 2-й ставки | N3: =Дата_выдачи_кредита+Кол_во_Льготных_дней+1 -> 2023-01-30
A4: Сумма кредита | D4: 1200 | I4: Платежная дата | N4: =DAY(Дата_выдачи_кредита) -> 25
A5: Срок кредита (мес.) | D5: 60 | I5: Количество дней после платежной даты | N5: =IF((N6-Платежная_дата<0),0,N6-Платежная_дата) -> 5
A6: %-ставка по договору(Льготная /Основная) | D6: 1e-05 | E6: 0.184 | I6: Количество дней в месяце | N6: 30
A7: Отсрочка платежа по ОД (мес.) | D7: 0 | I7: количество льгодных дней в периоде с ID = 2 | N7: =IF((DAY(Дата_второй_ставки))=1,Платежная_дата,IF((DAY(Дата_второй_ставки-1))>30,30,DAY(Дата_второй_ставки-1))) -> 29
A8: Срок действия льготной ставки (дней) | D8: 65 | I8: количество НЕ_льгодных дней в периоде с ID = 2 | N8: =IF((N6-N7)<0,0,N6-N7) -> 1
A10: Итого (бел.руб.) | C10: =SUM(C13:C132) -> 1200 | D10: =SUM(D13:D132) -> 605.0187225 | E10: =SUM(E13:E132) -> 1805
I11: Для ОД | J11: Для процентов | L11: начисление % (сроки) | N11: ID | O11: Количество дней для 1-й ставки | P11: Количество дней для 2-й ставки | Q11: Расчет суммы процентов | R11: %
A12: Платеж | B12: Дата платежа | C12: Сумма платежа по ОД (бел.руб) | D12: Сумма платежа по % (бел.руб) | E12: Сумма платежа по кредиту (бел.руб) | I12: Остаток ОД | J12: Остаток ОД на начало | K12: Остаток ОД на конец | L12: дата начала периода начисления | M12: дата конеца периода начисления | R12: для ID 1 ставки | S12: для ID 2 ставки | T12: для ID 3 ставки | U12: для ID 4 ставки | W12: Среднедневные остатки на начало | X12: Среднедневные остатки на конец
A13: =IF(Срок_Кредита<1,"",1) -> 1 | B13: =IFERROR((DATE(YEAR(O2),MONTH(O2)+1,DAY(O2))),"") -> 2022-12-25 | C13: =IF(A13="","",IF(A13<=Отсрочка_ОД,0,(I13*(Основная_Ставка/12)/(1-POWER(1+Основная_Ставка/12,-Срок_Кредита)))-(I13*Основная_Ставка/12))) -> 12.33383331 | D13: =IF(A13="","",Q13) -> 0.0001666666667 | E13: =IF(A13="","",ROUND(C13,2)+ROUND(D13,2)) -> 12.33 | I13: =IF(A13="","",Сумма_Кредита) -> 1200 | J13: =IF(A13="","",I13) -> 1200 | K13: =IF(A13="","",J13) -> 1200 | L13: =IF(A13="","",DATE(YEAR(Дата_выдачи_кредита),MONTH(Дата_выдачи_кредита),DAY(Дата_выдачи_кредита))) -> 2022-11-25 | M13: =IF(A13="","",EOMONTH(L13,0)) -> 2022-11-30 | N13: =IF(A13="","",IF(A13=Срок_Кредита,4,IF(Кол_во_Льготных_дней=0,1,IF(Дата_второй_ставки>M13,1,IF(Дата_второй_ставки>=L13,IF(Дата_второй_ставки<=M13,2),3))))) -> 1 | O13: =IF(A13="","",IF(N13=1,$N$5,IF(N13=2,Кол_во_Льготных_дней-1,0))) -> 5 | P13: =IF(A13="","",N5-O13) -> 0 | Q13: =IF(A13="","",J13*Льготная_Ставка*O13/360+K13*Основная_Ставка*P13/360) -> 0.0001666666667 | W13: =IFERROR(J13*30,0) -> 36000 | X13: =IFERROR(K13*30,0) -> 36000
A14: =IF(Срок_Кредита<2,"",2) -> 2 | B14: =IF(A14="","",IFERROR((DATE(YEAR(B13),MONTH(B13)+1,DAY(B13))),"")) -> 2023-01-25 | C14: =IF(A14="","",IF(A14<=Отсрочка_ОД,0,((I14*Основная_Ставка/12)/(1-POWER(((Основная_Ставка/12)+1),-(Срок_Кредита-A13)))-I14*Основная_Ставка/12))) -> 12.52295209 | D14: =IF(A14="","",Q14) -> 0.0009982869676 | E14: =IF(A14="","",ROUND(C14,2)+ROUND(D14,2)) -> 12.52 | I14: =IF(A14="","",I13-C13) -> 1187.666167 | J14: =IF(A14="","",K13) -> 1200 | K14: =IF(A14="","",I14) -> 1187.666167 | L14: =IF(A14="","",DATE(YEAR(Дата_выдачи_кредита),MONTH(Дата_выдачи_кредита)+A13,DAY(1))) -> 2022-12-01 | M14: 2022-12-31 | N14: =IF(A14="","",IF(A14=Срок_Кредита,4,IF(Кол_во_Льготных_дней=0,3,IF(Дата_второй_ставки>=M14,1,IF(Дата_второй_ставки>L14,IF(Дата_второй_ставки<M14,2),3))))) -> 1 | O14: =IF(A14="","",IF(N14=1,Платежная_дата,IF(N14=2,$N$7,Платежная_дата))) -> 25 | P14: =IF(A14="","",IF(N14=1,$N$5,IF(N14=2,$N$8,$N$5))) -> 5 | Q14: =IF(A14="","",IF(N14=1,R14,IF(N14=2,S14,IF(N14=3,T14,IF(N14=4,U14))))) -> 0.0009982869676 | R14: =IF(A14="","",J14*Льготная_Ставка*O14/360+K14*Льготная_Ставка*P14/360) -> 0.0009982869676 | S14: =IF(A14="","",IF($N$7<Платежная_дата,J14*Льготная_Ставка*$N$7/360+J14*Основная_Ставка*(Платежная_дата-$N$7)/360+K14*Основная_Ставка*$N$5/360,IF($N$7=Платежная_дата,J14*Льготная_Ставка*Платежная_дата/360+K14*Основная_Ставка*$N$5/360,IF($N$7>Платежная_дата,J14*Льготная_Ставка*Платежная_дата/360+K14*Льготная_Ставка*($N$7-Платежная_дата)/360+K14*Основная_Ставка*$N$8/360)))) -> 0.6079946703 | T14: =IF(A14="","",J14*Основная_Ставка*O14/360+K14*Основная_Ставка*P14/360) -> 18.3684802 | U14: =IF(A14="","",J14*Основная_Ставка*O14/360+K14*Основная_Ставка*P14/360+K14*Основная_Ставка*Платежная_дата/360) -> 33.54421456 | W14: =IFERROR(J14*30,0) -> 36000 | X14: =IFERROR(K14*30,0) -> 35629.985
A15: =IF(Срок_Кредита<3,"",3) -> 3 | B15: =IF(A15="","",IFERROR((DATE(YEAR(B14),MONTH(B14)+1,DAY(B14))),"")) -> 2023-02-25 | C15: 12.71497068 | D15: 0.6015840938 | E15: 13.31 | I15: =IF(A15="","",I14-C14) -> 1175.143215 | J15: 1187.666167 | K15: 1175.143215 | L15: 2023-01-01 | M15: 2023-01-31 | N15: 2 | O15: 29 | P15: =IF(A15="","",IF(N15=1,$N$5,IF(N15=2,$N$8,$N$5))) -> 1 | Q15: 0.6015840938 | R15: 0.0009893739458 | S15: 0.6015840938 | T15: 18.2044806 | U15: 33.22019946 | W15: 35629.985 | X15: 35254.29644
A16: =IF(Срок_Кредита<4,"",4) -> 4 | B16: 2023-03-25 | C16: 12.90993357 | D16: 17.98636881 | E16: 30.9 | I16: 1162.428244 | J16: 1175.143215 | K16: 1162.428244 | L16: 2023-02-01 | M16: 2023-02-28 | N16: 3 | O16: 25 | P16: 5 | Q16: 17.98636881 | R16: 0.000977520044 | S16: 0.5950752217 | T16: 17.98636881 | U16: 32.83961859 | W16: 35254.29644 | X16: 34872.84732
A17: =IF(Срок_Кредита<5,"",5) -> 5 | B17: 2023-04-25 | C17: 13.10788588 | D17: 17.79090769 | E17: 30.9 | I17: 1149.51831 | J17: 1162.428244 | K17: 1149.51831 | L17: 2023-03-01 | M17: 2023-03-31 | N17: 3 | O17: 25 | P17: 5 | Q17: 17.79090769 | R17: 0.0009668971569 | S17: 0.5884665469 | T17: 17.79090769 | U17: 32.47919721 | W17: 34872.84732 | X17: 34485.54931
A18: =IF(Срок_Кредита<6,"",6) -> 6 | B18: 2023-05-25 | C18: 13.30887347 | D18: 17.59244949 | E18: 30.9 | I18: 1136.410424 | J18: 1149.51831 | K18: 1136.410424 | L18: 2023-04-01 | M18: 2023-04-30 | N18: 3 | O18: 25 | P18: 5 | Q18: 17.59244949 | R18: 0.0009561113856 | S18: 0.5817565392 | T18: 17.59244949 | U18: 32.11324936 | W18: 34485.54931 | X18: 34092.31273
A19: =IF(Срок_Кредита<7,"",7) -> 7 | B19: 2023-06-25 | C19: 13.51294286 | D19: 17.39094828 | E19: 30.9 | I19: 1123.101551 | J19: 1136.410424 | K19: 1123.101551 | L19: 2023-05-01 | M19: 2023-05-31 | N19: 3 | O19: 25 | P19: 5 | Q19: 17.39094828 | R19: 0.0009451602324 | S19: 0.5749436446 | T19: 17.39094828 | U19: 31.74169032 | W19: 34092.31273 | X19: 33693.04653
A20: =IF(Срок_Кредита<8,"",8) -> 8 | B20: 2023-07-25 | C20: 13.72014132 | D20: 17.18635737 | E20: 30.91 | I20: 1109.588608 | J20: 1123.101551 | K20: 1109.588608 | L20: 2023-06-01 | M20: 2023-06-30 | N20: 3 | O20: 25 | P20: 5 | Q20: 17.18635737 | R20: 0.0009340411616 | S20: 0.5680262856 | T20: 17.18635737 | U20: 31.36443403 | W20: 33693.04653 | X20: 33287.65824
A21: =IF(Срок_Кредита<9,"",9) -> 9 | B21: 2023-08-25 | C21: 13.93051682 | D21: 16.97862941 | E21: 30.91 | I21: 1095.868467 | J21: 1109.588608 | K21: 1095.868467 | L21: 2023-07-01 | M21: 2023-07-31 | N21: 3 | O21: 25 | P21: 5 | Q21: 16.97862941 | R21: 0.0009227515983 | S21: 0.5610028605 | T21: 16.97862941 | U21: 30.98139315 | W21: 33287.65824 | X21: 32876.054
A22: =IF(Срок_Кредита<10,"",10) -> 10 | B22: 2023-09-25 | C22: 14.14411807 | D22: 16.76771628 | E22: 30.91 | I22: 1081.93795 | J22: 1095.868467 | K22: 1081.93795 | L22: 2023-08-01 | M22: 2023-08-31 | N22: 3 | O22: 25 | P22: 5 | Q22: 16.76771628 | R22: 0.0009112889284 | S22: 0.5538717429 | T22: 16.76771628 | U22: 30.59247898 | W22: 32876.054 | X22: 32458.1385
A23: =IF(Срок_Кредита<11,"",11) -> 11 | B23: 2023-10-25 | C23: 14.36099455 | D23: 16.55356915 | E23: 30.91 | I23: 1067.793832 | J23: 1081.93795 | K23: 1067.793832 | L23: 2023-09-01 | M23: 2023-09-30 | N23: 3 | O23: 25 | P23: 5 | Q23: 16.55356915 | R23: 0.0008996504975 | S23: 0.5466312814 | T23: 16.55356915 | U23: 30.19760145 | W23: 32458.1385 | X23: 32033.81496
A24: =IF(Срок_Кредита<12,"",12) -> 12 | B24: 2023-11-25 | C24: 14.58119647 | D24: 16.33613844 | E24: 30.92 | I24: 1053.432837 | J24: 1067.793832 | K24: 1053.432837 | L24: 2023-10-01 | M24: 2023-10-31 | N24: 3 | O24: 25 | P24: 5 | Q24: 16.33613844 | R24: 0.0008878336107 | S24: 0.5392797996 | T24: 16.33613844 | U24: 29.79666914 | W24: 32033.81496 | X24: 31602.98512
A25: =IF(Срок_Кредита<13,"",13) -> 13 | B25: 2023-12-25 | C25: 14.80477481 | D25: 16.11537378 | E25: 30.92 | I25: 1038.851641 | J25: 1053.432837 | K25: 1038.851641 | L25: 2023-11-01 | M25: 2023-11-30 | N25: 3 | O25: 25 | P25: 5 | Q25: 16.11537378 | R25: 0.0008758355316 | S25: 0.531815595 | T25: 16.11537378 | U25: 29.38958919 | W25: 31602.98512 | X25: 31165.54923
A26: =IF(Срок_Кредита<14,"",14) -> 14 | B26: 2024-01-25 | C26: 15.03178136 | D26: 15.89122407 | E26: 30.92 | I26: 1024.046866 | J26: 1038.851641 | K26: 1024.046866 | L26: 2023-12-01 | M26: 2023-12-31 | N26: 3 | O26: 25 | P26: 5 | Q26: 15.89122407 | R26: 0.000863653482 | S26: 0.5242369393 | T26: 15.89122407 | U26: 28.97626736 | W26: 31165.54923 | X26: 30721.40598
A27: =IF(Срок_Кредита<15,"",15) -> 15 | B27: 2024-02-25 | C27: 15.26226867 | D27: 15.66363739 | E27: 30.92 | I27: 1009.015085 | J27: 1024.046866 | K27: 1009.015085 | L27: 2024-01-01 | M27: 2024-01-31 | N27: 3 | O27: 25 | P27: 5 | Q27: 15.66363739 | R27: 0.000851284641 | S27: 0.5165420775 | T27: 15.66363739 | U27: 28.55660792 | W27: 30721.40598 | X27: 30270.45254
A28: =IF(Срок_Кредита<16,"",16) -> 16 | B28: 2024-03-25 | C28: 15.49629013 | D28: 15.43256106 | E28: 30.93 | I28: 993.7528161 | J28: 1009.015085 | K28: 993.7528161 | L28: 2024-02-01 | M28: 2024-02-29 | N28: 3 | O28: 25 | P28: 5 | Q28: 15.43256106 | R28: 0.0008387261444 | S28: 0.5087292279 | T28: 15.43256106 | U28: 28.13051371 | W28: 30270.45254 | X28: 29812.58448
A29: =IF(Срок_Кредита<17,"",17) -> 17 | B29: 2024-04-25 | C29: 15.73389991 | D29: 15.19794155 | E29: 30.93 | I29: 978.2565259 | J29: 993.7528161 | K29: 978.2565259 | L29: 2024-03-01 | M29: 2024-03-31 | N29: 3 | O29: 25 | P29: 5 | Q29: 15.19794155 | R29: 0.0008259750842 | S29: 0.5007965812 | T29: 15.19794155 | U29: 27.69788605 | W29: 29812.58448 | X29: 29347.69578
A30: =IF(Срок_Кредита<18,"",18) -> 18 | B30: 2024-05-25 | C30: 15.97515304 | D30: 14.95972454 | E30: 30.94 | I30: 962.522626 | J30: 978.2565259 | K30: 962.522626 | L30: 2024-04-01 | M30: 2024-04-30 | N30: 3 | O30: 25 | P30: 5 | Q30: 14.95972454 | R30: 0.0008130285077 | S30: 0.4927423006 | T30: 14.95972454 | U30: 27.25862476 | W30: 29347.69578 | X30: 28875.67878
A31: =IF(Срок_Кредита<19,"",19) -> 19 | B31: 2024-06-25 | C31: 16.22010539 | D31: 14.71785487 | E31: 30.94 | I31: 946.547473 | J31: 962.522626 | K31: 946.547473 | L31: 2024-05-01 | M31: 2024-05-31 | N31: 3 | O31: 25 | P31: 5 | Q31: 14.71785487 | R31: 0.0007998834171 | S31: 0.4845645211 | T31: 14.71785487 | U31: 26.81262814 | W31: 28875.67878 | X31: 28396.42419
A32: =IF(Срок_Кредита<20,"",20) -> 20 | B32: 2024-07-25 | C32: 16.46881367 | D32: 14.47227654 | E32: 30.94 | I32: 930.3273676 | J32: 946.547473 | K32: 930.3273676 | L32: 2024-06-01 | M32: 2024-06-30 | N32: 3 | O32: 25 | P32: 5 | Q32: 14.47227654 | R32: 0.0007865367684 | S32: 0.4762613489 | T32: 14.47227654 | U32: 26.3597929 | W32: 28396.42419 | X32: 27909.82103
A33: =IF(Срок_Кредита<21,"",21) -> 21 | B33: 2024-08-25 | C33: 16.72133548 | D33: 14.22293267 | E33: 30.94 | I33: 913.8585539 | J33: 930.3273676 | K33: 913.8585539 | L33: 2024-07-01 | M33: 2024-07-31 | N33: 3 | O33: 25 | P33: 5 | Q33: 14.22293267 | R33: 0.0007729854711 | S33: 0.4678308614 | T33: 14.22293267 | U33: 25.90001419 | W33: 27909.82103 | X33: 27415.75662
A34: =IF(Срок_Кредита<22,"",22) -> 22 | B34: 2024-09-25 | C34: 16.97772929 | D34: 13.96976553 | E34: 30.95 | I34: 897.1372185 | J34: 913.8585539 | K34: 897.1372185 | L34: 2024-08-01 | M34: 2024-08-31 | N34: 3 | O34: 25 | P34: 5 | Q34: 13.96976553 | R34: 0.0007592263872 | S34: 0.4592711065 | T34: 13.96976553 | U34: 25.43318554 | W34: 27415.75662 | X34: 26914.11655
A35: =IF(Срок_Кредита<23,"",23) -> 23 | B35: 2024-10-25 | C35: 17.23805447 | D35: 13.71271649 | E35: 30.95 | I35: 880.1594892 | J35: 897.1372185 | K35: 880.1594892 | L35: 2024-09-01 | M35: 2024-09-30 | N35: 3 | O35: 25 | P35: 5 | Q35: 13.71271649 | R35: 0.0007452563308 | S35: 0.4505801019 | T35: 13.71271649 | U35: 24.95919885 | W35: 26914.11655 | X35: 26404.78467
A36: =IF(Срок_Кредита<24,"",24) -> 24 | B36: 2024-11-25 | C36: 17.50237131 | D36: 13.45172603 | E36: 30.95 | I36: 862.9214347 | J36: 880.1594892 | K36: 862.9214347 | L36: 2024-10-01 | M36: 2024-10-31 | N36: 3 | O36: 25 | P36: 5 | Q36: 13.45172603 | R36: 0.0007310720667 | S36: 0.4417558353 | T36: 13.45172603 | U36: 24.47794436 | W36: 26404.78467 | X36: 25887.64304
A37: =IF(Срок_Кредита<25,"",25) -> 25 | B37: 2024-12-25 | C37: 17.770741 | D37: 13.18673372 | E37: 30.96 | I37: 845.4190634 | J37: 862.9214347 | K37: 845.4190634 | L37: 2024-11-01 | M37: 2024-11-30 | N37: 3 | O37: 25 | P37: 5 | Q37: 13.18673372 | R37: 0.0007166703107 | S37: 0.4327962633 | T37: 13.18673372 | U37: 23.98931064 | W37: 25887.64304 | X37: 25362.5719
A38: =IF(Срок_Кредита<26,"",26) -> 26 | B38: 2025-01-25 | C38: 18.0432257 | D38: 12.91767819 | E38: 30.96 | I38: 827.6483224 | J38: 845.4190634 | K38: 827.6483224 | L38: 2024-12-01 | M38: 2024-12-31 | N38: 3 | O38: 25 | P38: 5 | Q38: 12.91767819 | R38: 0.0007020477277 | S38: 0.4236993112 | T38: 12.91767819 | U38: 23.49318453 | W38: 25362.5719 | X38: 24829.44967
A39: =IF(Срок_Кредита<27,"",27) -> 27 | B39: 2025-02-25 | C39: 18.31988849 | D39: 12.64449714 | E39: 30.96 | I39: 809.6050967 | J39: 827.6483224 | K39: 809.6050967 | L39: 2025-01-01 | M39: 2025-01-31 | N39: 3 | O39: 25 | P39: 5 | Q39: 12.64449714 | R39: 0.0006872009317 | S39: 0.4144628724 | T39: 12.64449714 | U39: 22.98945116 | W39: 24829.44967 | X39: 24288.1529
A40: =IF(Срок_Кредита<28,"",28) -> 28 | B40: 2025-03-25 | C40: 18.60079345 | D40: 12.36712732 | E40: 30.97 | I40: 791.2852082 | J40: 809.6050967 | K40: 791.2852082 | L40: 2025-02-01 | M40: 2025-02-28 | N40: 3 | O40: 25 | P40: 5 | Q40: 12.36712732 | R40: 0.0006721264849 | S40: 0.4050848083 | T40: 12.36712732 | U40: 22.47799387 | W40: 24288.1529 | X40: 23738.55625
A41: =IF(Срок_Кредита<29,"",29) -> 29 | B41: 2025-04-25 | C41: 18.88600562 | D41: 12.0855045 | E41: 30.98 | I41: 772.6844147 | J41: 791.2852082 | K41: 772.6844147 | L41: 2025-03-01 | M41: 2025-03-31 | N41: 3 | O41: 25 | P41: 5 | Q41: 12.0855045 | R41: 0.0006568208966 | S41: 0.3955629472 | T41: 12.0855045 | U41: 21.95869424 | W41: 23738.55625 | X41: 23180.53244
A42: =IF(Срок_Кредита<30,"",30) -> 30 | B42: 2025-05-25 | C42: 19.17559103 | D42: 11.79956346 | E42: 30.98 | I42: 753.7984091 | J42: 772.6844147 | K42: 753.7984091 | L42: 2025-04-01 | M42: 2025-04-30 | N42: 3 | O42: 25 | P42: 5 | Q42: 11.79956346 | R42: 0.0006412806226 | S42: 0.3858950842 | T42: 11.79956346 | U42: 21.43143202 | W42: 23180.53244 | X42: 22613.95227
A43: =IF(Срок_Кредита<31,"",31) -> 31 | B43: 2025-06-25 | C43: 19.46961676 | D43: 11.50923799 | E43: 30.98 | I43: 734.6228181 | J43: 753.7984091 | K43: 734.6228181 | L43: 2025-05-01 | M43: 2025-05-31 | N43: 3 | O43: 25 | P43: 5 | Q43: 11.50923799 | R43: 0.0006255020644 | S43: 0.3760789807 | T43: 11.50923799 | U43: 20.89608511 | W43: 22613.95227 | X43: 22038.68454
A44: =IF(Срок_Кредита<32,"",32) -> 32 | B44: 2025-07-25 | C44: 19.76815089 | D44: 11.21446086 | E44: 30.98 | I44: 715.1532013 | J44: 734.6228181 | K44: 715.1532013 | L44: 2025-06-01 | M44: 2025-06-30 | N44: 3 | O44: 25 | P44: 5 | Q44: 11.21446086 | R44: 0.0006094815683 | S44: 0.3661123635 | T44: 11.21446086 | U44: 20.35252954 | W44: 22038.68454 | X44: 21454.59604
A45: =IF(Срок_Кредита<33,"",33) -> 33 | B45: 2025-08-25 | C45: 20.07126253 | D45: =IF(A45="","",Q45) -> 10.91516381 | E45: 30.99 | I45: 695.3850504 | J45: 715.1532013 | K45: 695.3850504 | L45: 2025-07-01 | M45: =IF(A45="","",EOMONTH(L45,0)) -> 2025-07-31 | N45: 3 | O45: 25 | P45: 5 | Q45: 10.91516381 | R45: 0.0005932154246 | S45: 0.355992925 | T45: 10.91516381 | U45: 19.80063946 | W45: 21454.59604 | X45: 20861.55151
A46: =IF(Срок_Кредита<34,"",34) -> 34 | B46: 2025-09-25 | C46: =IF(A46="","",IF(A46<=Отсрочка_ОД,0,((I46*Основная_Ставка/12)/(1-POWER(((Основная_Ставка/12)+1),-(Срок_Кредита-A45)))-I46*Основная_Ставка/12))) -> 20.37902189 | D46: 10.61127755 | E46: 30.99 | I46: =IF(A46="","",I45-C45) -> 675.3137879 | J46: =IF(A46="","",K45) -> 695.3850504 | K46: =IF(A46="","",I46) -> 675.3137879 | L46: =IF(A46="","",DATE(YEAR(Дата_выдачи_кредита),MONTH(Дата_выдачи_кредита)+A45,DAY(1))) -> 2025-08-01 | M46: 2025-08-31 | N46: =IF(A46="","",IF(A46=Срок_Кредита,4,IF(Кол_во_Льготных_дней=0,3,IF(Дата_второй_ставки>=M46,1,IF(Дата_второй_ставки>L46,IF(Дата_второй_ставки<M46,2),3))))) -> 3 | O46: =IF(A46="","",IF(N46=1,Платежная_дата,IF(N46=2,$N$7,Платежная_дата))) -> 25 | P46: 5 | Q46: =IF(A46="","",IF(N46=1,R46,IF(N46=2,S46,IF(N46=3,T46,IF(N46=4,U46))))) -> 10.61127755 | R46: =IF(A46="","",J46*Льготная_Ставка*O46/360+K46*Льготная_Ставка*P46/360) -> 0.0005766998667 | S46: =IF(A46="","",IF($N$7<Платежная_дата,J46*Льготная_Ставка*$N$7/360+J46*Основная_Ставка*(Платежная_дата-$N$7)/360+K46*Основная_Ставка*$N$5/360,IF($N$7=Платежная_дата,J46*Льготная_Ставка*Платежная_дата/360+K46*Основная_Ставка*$N$5/360,IF($N$7>Платежная_дата,J46*Льготная_Ставка*Платежная_дата/360+K46*Льготная_Ставка*($N$7-Платежная_дата)/360+K46*Основная_Ставка*$N$8/360)))) -> 0.3457183216 | T46: =IF(A46="","",J46*Основная_Ставка*O46/360+K46*Основная_Ставка*P46/360) -> 10.61127755 | U46: =IF(A46="","",J46*Основная_Ставка*O46/360+K46*Основная_Ставка*P46/360+K46*Основная_Ставка*Платежная_дата/360) -> 19.24028706 | W46: 20861.55151 | X46: 20259.41364
A47: =IF(Срок_Кредита<35,"",35) -> 35 | B47: 2025-10-25 | C47: 20.69150023 | D47: 10.30273169 | E47: 30.99 | I47: 654.934766 | J47: 675.3137879 | K47: 654.934766 | L47: 2025-09-01 | M47: 2025-09-30 | N47: 3 | O47: 25 | P47: 5 | Q47: 10.30273169 | R47: 0.0005599310702 | S47: 0.3352861744 | T47: 10.30273169 | U47: 18.67134259 | W47: 20259.41364 | X47: 19648.04298
A48: =IF(Срок_Кредита<36,"",36) -> 36 | B48: 2025-11-25 | C48: 21.0087699 | D48: 9.9894548 | E48: 31 | I48: 634.2432658 | J48: 654.934766 | K48: 634.2432658 | L48: 2025-10-01 | M48: 2025-10-31 | N48: 3 | O48: 25 | P48: 5 | Q48: 9.9894548 | R48: 0.0005429051522 | S48: 0.3246940676 | T48: 9.9894548 | U48: 18.09367431 | W48: 19648.04298 | X48: 19027.29797
A49: =IF(Срок_Кредита<37,"",37) -> 37 | B49: 2025-12-25 | C49: 21.33090437 | D49: 9.67137433 | E49: 31 | I49: 613.2344959 | J49: 634.2432658 | K49: 613.2344959 | L49: 2025-11-01 | M49: 2025-11-30 | N49: 3 | O49: 25 | P49: 5 | Q49: 9.67137433 | R49: 0.0005256181701 | S49: 0.3139395484 | T49: 9.67137433 | U49: 17.50714844 | W49: 19027.29797 | X49: 18397.03488
A50: =IF(Срок_Кредита<38,"",38) -> 38 | B50: 2026-01-25 | C50: 21.65797824 | D50: 9.348416626 | E50: 31.01 | I50: 591.9035915 | J50: 613.2344959 | K50: 591.9035915 | L50: 2025-12-01 | M50: 2025-12-31 | N50: 3 | O50: 25 | P50: 5 | Q50: 9.348416626 | R50: 0.000508066121 | S50: 0.3030201267 | T50: 9.348416626 | U50: 16.91162918 | W50: 18397.03488 | X50: 17757.10775
A51: =IF(Срок_Кредита<39,"",39) -> 39 | B51: 2026-02-25 | C51: 21.99006724 | D51: 9.020506903 | E51: 31.01 | I51: 570.2456133 | J51: 591.9035915 | K51: 570.2456133 | L51: 2026-01-01 | M51: 2026-01-31 | N51: 3 | O51: 25 | P51: 5 | Q51: 9.020506903 | R51: 0.0004902449404 | S51: 0.2919332738 | T51: 9.020506903 | U51: 16.30697863 | W51: 17757.10775 | X51: 17107.3684
A52: =IF(Срок_Кредита<40,"",40) -> 40 | B52: 2026-03-25 | C52: 22.32724827 | D52: 8.687569232 | E52: 31.02 | I52: 548.255546 | J52: 570.2456133 | K52: 548.255546 | L52: 2026-02-01 | M52: 2026-02-28 | N52: 3 | O52: 25 | P52: 5 | Q52: 8.687569232 | R52: 0.0004721505017 | S52: 0.2806764225 | T52: 8.687569232 | U52: 15.69305676 | W52: 17107.3684 | X52: 16447.66638
A53: =IF(Срок_Кредита<41,"",41) -> 41 | B53: 2026-04-25 | C53: 22.66959941 | D53: 8.349526516 | E53: 31.02 | I53: 525.9282978 | J53: 548.255546 | K53: 525.9282978 | L53: 2026-03-01 | M53: 2026-03-31 | N53: 3 | O53: 25 | P53: 5 | Q53: 8.349526516 | R53: 0.000453778615 | S53: 0.2692469661 | T53: 8.349526516 | U53: 15.06972143 | W53: 16447.66638 | X53: 15777.84893
A54: =IF(Срок_Кредита<42,"",42) -> 42 | B54: 2026-05-25 | C54: 23.01719993 | D54: 8.006300478 | E54: 31.03 | I54: 503.2586984 | J54: 525.9282978 | K54: 503.2586984 | L54: 2026-04-01 | M54: 2026-04-30 | N54: 3 | O54: 25 | P54: 5 | Q54: 8.006300478 | R54: 0.000435125026 | S54: 0.2576422581 | T54: 8.006300478 | U54: 14.43682829 | W54: 15777.84893 | X54: 15097.76095
A55: =IF(Срок_Кредита<43,"",43) -> 43 | B55: 2026-06-25 | C55: 23.37013033 | D55: 7.657811642 | E55: 31.03 | I55: 480.2414984 | J55: 503.2586984 | K55: 480.2414984 | L55: 2026-05-01 | M55: 2026-05-31 | N55: 3 | O55: 25 | P55: 5 | Q55: 7.657811642 | R55: 0.0004161854153 | S55: 0.2458596112 | T55: 7.657811642 | U55: 13.79423079 | W55: 15097.76095 | X55: 14407.24495
A56: =IF(Срок_Кредита<44,"",44) -> 44 | B56: 2026-07-25 | C56: 23.72847233 | D56: 7.303979309 | E56: 31.03 | I56: 456.8713681 | J56: 480.2414984 | K56: 456.8713681 | L56: 2026-06-01 | M56: 2026-06-30 | N56: 3 | O56: 25 | P56: 5 | Q56: 7.303979309 | R56: 0.0003969553973 | S56: 0.2338962971 | T56: 7.303979309 | U56: 13.14178012 | W56: 14407.24495 | X56: 13706.14104
A57: =IF(Срок_Кредита<45,"",45) -> 45 | B57: 2026-08-25 | C57: 24.09230891 | D57: 6.944721548 | E57: 31.03 | I57: 433.1428958 | J57: 456.8713681 | K57: 433.1428958 | L57: 2026-07-01 | M57: 2026-07-31 | N57: 3 | O57: 25 | P57: 5 | Q57: 6.944721548 | R57: 0.0003774305189 | S57: 0.2217495455 | T57: 6.944721548 | U57: 12.47932522 | W57: 13706.14104 | X57: 12994.28687
A58: =IF(Срок_Кредита<46,"",46) -> 46 | B58: 2026-09-25 | C58: 24.46172431 | D58: 6.579955168 | E58: 31.04 | I58: 409.0505869 | J58: 433.1428958 | K58: 409.0505869 | L58: 2026-08-01 | M58: 2026-08-31 | N58: 3 | O58: 25 | P58: 5 | Q58: 6.579955168 | R58: 0.0003576062591 | S58: 0.2094165437 | T58: 6.579955168 | U58: 11.80671267 | W58: 12994.28687 | X58: 12271.51761
A59: =IF(Срок_Кредита<47,"",47) -> 47 | B59: 2026-10-25 | C59: 24.83680408 | D59: 6.209595703 | E59: 31.05 | I59: 384.5888625 | J59: 409.0505869 | K59: 384.5888625 | L59: 2026-09-01 | M59: 2026-09-30 | N59: 3 | O59: 25 | P59: 5 | Q59: 6.209595703 | R59: 0.0003374780273 | S59: 0.1968944359 | T59: 6.209595703 | U59: 11.12378672 | W59: 12271.51761 | X59: 11537.66588
A60: =IF(Срок_Кредита<48,"",48) -> 48 | B60: 2026-11-25 | C60: 25.21763508 | D60: 5.833557393 | E60: 31.05 | I60: 359.7520585 | J60: 384.5888625 | K60: 359.7520585 | L60: 2026-10-01 | M60: 2026-10-31 | N60: 3 | O60: 25 | P60: 5 | Q60: 5.833557393 | R60: 0.0003170411627 | S60: 0.1841803224 | T60: 5.833557393 | U60: 10.43038925 | W60: 11537.66588 | X60: 10792.56175
A61: =IF(Срок_Кредита<49,"",49) -> 49 | B61: 2026-12-25 | C61: 25.60430548 | D61: 5.451753162 | E61: 31.05 | I61: 334.5344234 | J61: 359.7520585 | K61: 334.5344234 | L61: 2026-11-01 | M61: 2026-11-30 | N61: 3 | O61: 25 | P61: 5 | Q61: 5.451753162 | R61: 0.0002962909327 | S61: 0.1712712592 | T61: 5.451753162 | U61: 9.726359684 | W61: 10792.56175 | X61: 10036.0327
A62: =IF(Срок_Кредита<50,"",50) -> 50 | B62: 2027-01-25 | C62: 25.99690483 | D62: 5.0640946 | E62: 31.06 | I62: 308.9301179 | J62: 334.5344234 | K62: 308.9301179 | L62: 2026-12-01 | M62: 2026-12-31 | N62: 3 | O62: 25 | P62: 5 | Q62: 5.0640946 | R62: 0.0002752225326 | S62: 0.158164257 | T62: 5.0640946 | U62: 9.011534996 | W62: 10036.0327 | X62: 9267.903537
A63: =IF(Срок_Кредита<51,"",51) -> 51 | B63: 2027-02-25 | C63: 26.39552404 | D63: 4.67049194 | E63: 31.07 | I63: 282.9332131 | J63: 308.9301179 | K63: 282.9332131 | L63: 2027-01-01 | M63: 2027-01-31 | N63: 3 | O63: 25 | P63: 5 | Q63: 4.67049194 | R63: 0.0002538310837 | S63: 0.1448562807 | T63: 4.67049194 | U63: 8.285749663 | W63: 9267.903537 | X63: 8487.996392
A64: =IF(Срок_Кредита<52,"",52) -> 52 | B64: 2027-03-25 | C64: 26.80025541 | D64: 4.270854039 | E64: 31.07 | I64: 256.537689 | J64: 282.9332131 | K64: 256.537689 | L64: 2027-02-01 | M64: 2027-02-28 | N64: 3 | O64: 25 | P64: 5 | Q64: 4.270854039 | R64: 0.0002321116326 | S64: 0.1313442489 | T64: 4.270854039 | U64: 7.548835621 | W64: 8487.996392 | X64: 7696.130671
A65: =IF(Срок_Кредита<53,"",53) -> 53 | B65: 2027-04-25 | C65: 27.21119266 | D65: 3.865088357 | E65: 31.08 | I65: 229.7374336 | J65: 256.537689 | K65: 229.7374336 | L65: 2027-03-01 | M65: 2027-03-31 | N65: 3 | O65: 25 | P65: 5 | Q65: 3.865088357 | R65: 0.0002100591498 | S65: 0.1176250325 | T65: 3.865088357 | U65: 6.800622231 | W65: 7696.130671 | X65: 6892.123009
A66: =IF(Срок_Кредита<54,"",54) -> 54 | B66: 2027-05-25 | C66: 27.62843095 | D66: 3.453100934 | E66: 31.08 | I66: 202.526241 | J66: 229.7374336 | K66: 202.526241 | L66: 2027-04-01 | M66: 2027-04-30 | N66: 3 | O66: 25 | P66: 5 | Q66: 3.453100934 | R66: 0.000187668529 | S66: 0.1036954548 | T66: 3.453100934 | U66: 6.040936236 | W66: 6892.123009 | X66: 6075.787229
A67: =IF(Срок_Кредита<55,"",55) -> 55 | B67: 2027-06-25 | C67: 28.05206689 | D67: 3.034796371 | E67: 31.08 | I67: 174.89781 | J67: 202.526241 | K67: 174.89781 | L67: 2027-05-01 | M67: 2027-05-31 | N67: 3 | O67: 25 | P67: 5 | Q67: 3.034796371 | R67: 0.0001649345854 | S67: 0.08955229032 | T67: 3.034796371 | U67: 5.269601722 | W67: 6075.787229 | X67: 5246.934301
A68: =IF(Срок_Кредита<56,"",56) -> 56 | B68: 2027-07-25 | C68: 28.48219858 | D68: 2.610077805 | E68: 31.09 | I68: 146.8457431 | J68: 174.89781 | K68: 146.8457431 | L68: 2027-06-01 | M68: 2027-06-30 | N68: 3 | O68: 25 | P68: 5 | Q68: 2.610077805 | R68: 0.0001418520546 | S68: 0.07519226394 | T68: 2.610077805 | U68: 4.486440078 | W68: 5246.934301 | X68: 4405.372294
A69: =IF(Срок_Кредита<57,"",57) -> 57 | B69: 2027-08-25 | C69: 28.91892562 | D69: 2.178846887 | E69: 31.1 | I69: 118.3635446 | J69: 146.8457431 | K69: 118.3635446 | L69: 2027-07-01 | M69: 2027-07-31 | N69: 3 | O69: 25 | P69: 5 | Q69: 2.178846887 | R69: 0.0001184155917 | S69: 0.06061205049 | T69: 2.178846887 | U69: 3.691269956 | W69: 4405.372294 | X69: 3550.906337
A70: =IF(Срок_Кредита<58,"",58) -> 58 | B70: 2027-09-25 | C70: 29.36234915 | D70: 1.741003762 | E70: 31.1 | I70: 89.44461893 | J70: 118.3635446 | K70: 89.44461893 | L70: 2027-08-01 | M70: 2027-08-31 | N70: 3 | O70: 25 | P70: 5 | Q70: 1.741003762 | R70: 9.461976968e-05 | S70: 0.04580827376 | T70: 1.741003762 | U70: 2.883907226 | W70: 3550.906337 | X70: 2683.338568
A71: =IF(Срок_Кредита<59,"",59) -> 59 | B71: 2027-10-25 | C71: 29.81257184 | D71: 1.296447042 | E71: 31.11 | I71: 60.08226978 | J71: 89.44461893 | K71: 60.08226978 | L71: 2027-09-01 | M71: 2027-09-30 | N71: 3 | O71: 25 | P71: 5 | Q71: 1.296447042 | R71: 7.045907839e-05 | S71: 0.03077750579 | T71: 1.296447042 | U71: 2.064164934 | W71: 2683.338568 | X71: 1802.468093
A72: =IF(Срок_Кредита<60,"",60) -> 60 | B72: 2027-11-25 | C72: 30.26969794 | D72: 1.23185326 | E72: 31.5 | I72: 30.26969794 | J72: 60.08226978 | K72: 30.26969794 | L72: 2027-10-01 | M72: 2027-10-31 | N72: 4 | O72: 25 | P72: 5 | Q72: 1.23185326 | R72: 4.592792317e-05 | S72: 0.01551626604 | T72: 0.8450737863 | U72: 1.23185326 | W72: 1802.468093 | X72: 908.0909382
A73: =IF(Срок_Кредита<61,"",61) ->  | W73: 0 | X73: 0
A74: =IF(Срок_Кредита<62,"",62) ->  | W74: 0 | X74: 0
A75: =IF(Срок_Кредита<63,"",63) ->  | W75: 0 | X75: 0
A76: =IF(Срок_Кредита<64,"",64) ->  | W76: 0 | X76: 0
A77: =IF(Срок_Кредита<65,"",65) ->  | W77: 0 | X77: 0
A78: =IF(Срок_Кредита<66,"",66) ->  | C78: =IF(A78="","",IF(A78<=Отсрочка_ОД,0,((I78*Основная_Ставка/12)/(1-POWER(((Основная_Ставка/12)+1),-(Срок_Кредита-A77)))-I78*Основная_Ставка/12))) ->  | E78: =IF(A78="","",ROUND(C78,2)+ROUND(D78,2)) ->  | R78: =IF(A78="","",J78*Льготная_Ставка*O78/360+K78*Льготная_Ставка*P78/360) ->  | S78: =IF(A78="","",IF($N$7<Платежная_дата,J78*Льготная_Ставка*$N$7/360+J78*Основная_Ставка*(Платежная_дата-$N$7)/360+K78*Основная_Ставка*$N$5/360,IF($N$7=Платежная_дата,J78*Льготная_Ставка*Платежная_дата/360+K78*Основная_Ставка*$N$5/360,IF($N$7>Платежная_дата,J78*Льготная_Ставка*Платежная_дата/360+K78*Льготная_Ставка*($N$7-Платежная_дата)/360+K78*Основная_Ставка*$N$8/360)))) ->  | T78: =IF(A78="","",J78*Основная_Ставка*O78/360+K78*Основная_Ставка*P78/360) ->  | U78: =IF(A78="","",J78*Основная_Ставка*O78/360+K78*Основная_Ставка*P78/360+K78*Основная_Ставка*Платежная_дата/360) ->  | W78: =IFERROR(J78*30,0) -> 0 | X78: =IFERROR(K78*30,0) -> 0
A79: =IF(Срок_Кредита<67,"",67) ->  | B79: =IF(A79="","",IFERROR((DATE(YEAR(B78),MONTH(B78)+1,DAY(B78))),"")) ->  | P79: =IF(A79="","",IF(N79=1,$N$5,IF(N79=2,$N$8,$N$5))) ->  | W79: 0 | X79: 0
A80: =IF(Срок_Кредита<68,"",68) ->  | W80: 0 | X80: 0
A81: =IF(Срок_Кредита<69,"",69) ->  | W81: 0 | X81: 0
A82: =IF(Срок_Кредита<70,"",70) ->  | W82: 0 | X82: 0
A83: =IF(Срок_Кредита<71,"",71) ->  | W83: 0 | X83: 0
A84: =IF(Срок_Кредита<72,"",72) ->  | W84: 0 | X84: 0
A85: =IF(Срок_Кредита<73,"",73) ->  | W85: 0 | X85: 0
A86: =IF(Срок_Кредита<74,"",74) ->  | W86: 0 | X86: 0
A87: =IF(Срок_Кредита<75,"",75) ->  | W87: 0 | X87: 0
A88: =IF(Срок_Кредита<76,"",76) ->  | W88: 0 | X88: 0
A89: =IF(Срок_Кредита<77,"",77) ->  | W89: 0 | X89: 0
A90: =IF(Срок_Кредита<78,"",78) ->  | W90: 0 | X90: 0
A91: =IF(Срок_Кредита<79,"",79) ->  | W91: 0 | X91: 0
A92: =IF(Срок_Кредита<80,"",80) ->  | W92: 0 | X92: 0
A93: =IF(Срок_Кредита<81,"",81) ->  | W93: 0 | X93: 0
A94: =IF(Срок_Кредита<82,"",82) ->  | W94: 0 | X94: 0
A95: =IF(Срок_Кредита<83,"",83) ->  | W95: 0 | X95: 0
A96: =IF(Срок_Кредита<84,"",84) ->  | W96: 0 | X96: 0
A97: =IF(Срок_Кредита<85,"",85) ->  | W97: 0 | X97: 0
A98: =IF(Срок_Кредита<86,"",86) ->  | W98: 0 | X98: 0
A99: =IF(Срок_Кредита<87,"",87) ->  | W99: 0 | X99: 0
A100: =IF(Срок_Кредита<88,"",88) ->  | W100: 0 | X100: 0
A101: =IF(Срок_Кредита<89,"",89) ->  | W101: 0 | X101: 0
A102: =IF(Срок_Кредита<90,"",90) ->  | W102: 0 | X102: 0
A103: =IF(Срок_Кредита<91,"",91) ->  | W103: 0 | X103: 0
A104: =IF(Срок_Кредита<92,"",92) ->  | W104: 0 | X104: 0
A105: =IF(Срок_Кредита<93,"",93) ->  | W105: 0 | X105: 0
A106: =IF(Срок_Кредита<94,"",94) ->  | W106: 0 | X106: 0
A107: =IF(Срок_Кредита<95,"",95) ->  | W107: 0 | X107: 0
A108: =IF(Срок_Кредита<96,"",96) ->  | W108: 0 | X108: 0
A109: =IF(Срок_Кредита<97,"",97) ->  | D109: =IF(A109="","",Q109) ->  | M109: =IF(A109="","",EOMONTH(L109,0)) ->  | W109: 0 | X109: 0
A110: =IF(Срок_Кредита<98,"",98) ->  | C110: =IF(A110="","",IF(A110<=Отсрочка_ОД,0,((I110*Основная_Ставка/12)/(1-POWER(((Основная_Ставка/12)+1),-(Срок_Кредита-A109)))-I110*Основная_Ставка/12))) ->  | I110: =IF(A110="","",I109-C109) ->  | J110: =IF(A110="","",K109) ->  | K110: =IF(A110="","",I110) ->  | L110: =IF(A110="","",DATE(YEAR(Дата_выдачи_кредита),MONTH(Дата_выдачи_кредита)+A109,DAY(1))) ->  | N110: =IF(A110="","",IF(A110=Срок_Кредита,4,IF(Кол_во_Льготных_дней=0,3,IF(Дата_второй_ставки>=M110,1,IF(Дата_второй_ставки>L110,IF(Дата_второй_ставки<M110,2),3))))) ->  | O110: =IF(A110="","",IF(N110=1,Платежная_дата,IF(N110=2,$N$7,Платежная_дата))) ->  | Q110: =IF(A110="","",IF(N110=1,R110,IF(N110=2,S110,IF(N110=3,T110,IF(N110=4,U110))))) ->  | R110: =IF(A110="","",J110*Льготная_Ставка*O110/360+K110*Льготная_Ставка*P110/360) ->  | S110: =IF(A110="","",IF($N$7<Платежная_дата,J110*Льготная_Ставка*$N$7/360+J110*Основная_Ставка*(Платежная_дата-$N$7)/360+K110*Основная_Ставка*$N$5/360,IF($N$7=Платежная_дата,J110*Льготная_Ставка*Платежная_дата/360+K110*Основная_Ставка*$N$5/360,IF($N$7>Платежная_дата,J110*Льготная_Ставка*Платежная_дата/360+K110*Льготная_Ставка*($N$7-Платежная_дата)/360+K110*Основная_Ставка*$N$8/360)))) ->  | T110: =IF(A110="","",J110*Основная_Ставка*O110/360+K110*Основная_Ставка*P110/360) ->  | U110: =IF(A110="","",J110*Основная_Ставка*O110/360+K110*Основная_Ставка*P110/360+K110*Основная_Ставка*Платежная_дата/360) ->  | W110: 0 | X110: 0
A111: =IF(Срок_Кредита<99,"",99) ->  | W111: 0 | X111: 0
A112: =IF(Срок_Кредита<100,"",100) ->  | W112: 0 | X112: 0
A113: =IF(Срок_Кредита<101,"",101) ->  | W113: 0 | X113: 0
A114: =IF(Срок_Кредита<102,"",102) ->  | W114: 0 | X114: 0
A115: =IF(Срок_Кредита<103,"",103) ->  | W115: 0 | X115: 0
A116: =IF(Срок_Кредита<104,"",104) ->  | W116: 0 | X116: 0
A117: =IF(Срок_Кредита<105,"",105) ->  | W117: 0 | X117: 0
A118: =IF(Срок_Кредита<106,"",106) ->  | W118: 0 | X118: 0
A119: =IF(Срок_Кредита<107,"",107) ->  | W119: 0 | X119: 0
A120: =IF(Срок_Кредита<108,"",108) ->  | W120: 0 | X120: 0
A121: =IF(Срок_Кредита<109,"",109) ->  | W121: 0 | X121: 0
A122: =IF(Срок_Кредита<110,"",110) ->  | W122: 0 | X122: 0
A123: =IF(Срок_Кредита<111,"",111) ->  | W123: 0 | X123: 0
A124: =IF(Срок_Кредита<112,"",112) ->  | W124: 0 | X124: 0
A125: =IF(Срок_Кредита<113,"",113) ->  | W125: 0 | X125: 0
A126: =IF(Срок_Кредита<114,"",114) ->  | W126: 0 | X126: 0
A127: =IF(Срок_Кредита<115,"",115) ->  | W127: 0 | X127: 0
A128: =IF(Срок_Кредита<116,"",116) ->  | W128: 0 | X128: 0
A129: =IF(Срок_Кредита<117,"",117) ->  | W129: 0 | X129: 0
A130: =IF(Срок_Кредита<118,"",118) ->  | W130: 0 | X130: 0
A131: =IF(Срок_Кредита<119,"",119) ->  | W131: 0 | X131: 0
A132: =IF(Срок_Кредита<120,"",120) ->  | W132: 0 | X132: 0
